bitfinex/quotes_ETHUSD_20241003
["timestamp","ask_amount","ask_price","bid_price","bid_amount"]
[1727941928594,1.5773,2372.0,2371.0,4.94129]
[1727941928595,3.37333,2371.6,2371.0,4.94129]
[1727941928783,3.37341,2371.5,2371.0,5.772845]
[1727941929121,3.37341,2371.5,2371.0,4.94129]
[1727941929277,3.37341,2371.5,2371.0,8.31532]
[1727941929477,3.37319,2371.7,2371.0,4.94123]
[1727941929804,3.37319,2371.7,2371.1,3.37387]
[1727941930013,3.37318,2371.7,2371.1,3.37387]
[1727941930192,1.5773,2372.0,2371.0,4.94123]
[1727941930193,4.95003,2372.0,2371.0,4.94123]
[1727941930519,3.37351,2371.5,2371.0,1.5672]
[1727941930728,3.37396,2371.1,2371.0,1.5672]
[1727941930895,3.37373,2371.3,2370.7,1.5566]
[1727941931082,3.3742,2371.0,2370.7,1.5566]
[1727941931284,6.74724,2371.4,2370.8,3.37436]
[1727941931485,3.3737,2371.3,2370.8,3.37436]
[1727941931682,6.74725,2371.4,2370.8,3.37436]
[1727941931920,6.74671,2371.6,2370.8,3.37427]
[1727941932131,3.37342,2371.5,2371.0,3.37408]
[1727941933307,4.96502659,2371.8,2370.9,2.15835083]
[1727941933308,3.37364,2371.4,2370.9,2.15835083]
[1727941933510,3.37362,2371.4,2370.9,2.15835083]
[1727941933715,3.37362,2371.4,2371.0,0.89069308]
[1727941934103,3.37361,2371.4,2371.0,0.89069308]
[1727941934630,6.74671,2371.6,2371.1,1.5704]
[1727941935014,5.03842659,2372.1,2371.1,1.5704]
[1727941935342,5.03842659,2372.1,2371.3,1.6115]
[1727941935343,3.37312,2371.7,2371.3,1.6115]
[1727941936283,3.37326,2371.6,2371.3,1.6115]
[1727941936724,3.37339,2371.5,2371.3,1.6115]
[1727941937086,3.37389,2371.2,2371.0,1.642]
[1727941937514,6.74783,2371.2,2371.0,1.642]
[1727941938098,3.37389,2371.2,2371.0,1.642]
[1727941938844,3.37396,2371.1,2371.0,1.642]
[1727941938989,3.37419,2371.0,2370.7,1.575]
[1727941939190,3.37425,2370.9,2370.7,1.575]
[1727941939589,6.74857,2370.9,2370.7,1.575]
[1727941939825,3.37425,2370.9,2370.7,1.575]
[1727941940128,3.37406,2371.1,2370.7,1.575]
[1727941940434,3.37406,2371.1,2370.7,2.10380196]
[1727941940838,3.37438,2370.9,2370.5,1.99216963]
[1727941941011,3.37462,2370.7,2370.5,0.00080421]
[1727941941339,3.37434,2370.9,2370.5,0.00080421]
[1727941941624,3.37434,2370.9,2370.6,1.5241]
[1727941942163,3.37453,2370.7,2370.5,0.00080421]
[1727941942317,3.37467,2370.6,2370.5,0.00080421]
[1727941944203,3.37453,2370.7,2370.5,0.00080421]
[1727941944799,4.99036,2371.4,2370.6,1.6147]
[1727941945004,4.99036,2371.4,2370.7,0.49902242]
[1727941945005,3.37418,2371.0,2370.7,0.49902242]
[1727941945242,3.3743,2370.9,2370.6,1.6147]
[1727941945604,3.37418,2371.0,2370.6,1.6147]
[1727941945605,3.3745,2370.8,2370.6,1.6147]
[1727941946123,6.74901,2370.8,2370.6,1.6147]
[1727941946325,3.3745,2370.8,2370.6,1.6147]
[1727941946626,3.37414,2371.0,2370.6,1.6147]
[1727941946825,3.33301622,2371.4,2370.5,3.37558421]
[1727941946826,1.71621622,2371.4,2370.9,1.5734]
[1727941947050,2.15872068,2371.5,2370.9,1.5734]
[1727941947051,1.71621622,2371.5,2370.9,1.5734]
[1727941947221,1.71621622,2371.5,2371.1,3.37395]
[1727941947558,3.37339,2371.5,2371.0,3.37398]
[1727941947706,3.37393,2371.2,2370.9,1.5734]
[1727941948231,6.74787,2371.2,2370.9,1.5734]
[1727941948606,3.37393,2371.2,2370.9,1.5734]
[1727941948832,3.37376,2371.3,2370.9,1.5734]
[1727941949049,3.37376,2371.3,2370.9,2.11808184]
[1727941949555,3.37339,2371.5,2370.9,5.49223184]
[1727941950139,3.37339,2371.5,2371.0,3.3741]
[1727941950776,3.37339,2371.5,2370.9,5.49223184]
[1727941950932,3.37339,2371.5,2371.0,0.54922318]
[1727941951136,3.37305,2371.8,2371.2,3.37375]
[1727941951338,6.74611,2371.8,2371.3,1.5446]
[1727941951782,3.37315,2371.7,2371.3,1.5446]
[1727941951937,3.37315,2371.7,2371.4,0.491833]
[1727941952346,3.37327,2371.6,2371.3,1.5446]
[1727941953901,3.0,2371.7,2371.4,3.37353]
[1727941954116,3.37275,2372.0,2371.6,1.583]
[1727941954287,3.37285,2371.9,2371.6,1.583]
[1727941955063,3.37254,2372.1,2371.6,5.451873]
[1727941955414,6.74499,2372.2,2371.6,5.451783]
[1727941955570,3.37248,2372.2,2371.7,3.3731]
[1727941955770,3.37248,2372.2,2371.7,0.8824883]
[1727941956010,3.37275,2372.0,2371.7,0.8824883]
[1727941956214,3.37275,2372.0,2371.6,1.583]
[1727941956510,3.37266,2372.1,2371.6,1.583]
[1727941956707,3.3727,2372.0,2371.6,1.583]
[1727941957299,3.37283,2371.9,2371.6,1.583]
[1727941958169,3.37283,2371.9,2371.3,3.3736]
[1727941958170,3.37311,2371.7,2371.3,1.5461]
[1727941958413,6.37297,2371.8,2371.3,1.5461]
[1727941958581,3.0,2371.8,2371.4,3.37352]
[1727941958780,3.0,2371.8,2371.3,1.5461]
[1727941958781,3.0,2371.9,2371.3,4.91968]
[1727941958994,3.0,2371.7,2371.3,4.91968]
[1727941959481,6.37312,2371.7,2371.3,1.5461]
[1727941960769,3.0,2371.7,2371.3,1.5461]
[1727941960966,3.37339,2371.5,2371.3,1.5461]
[1727941961173,6.74687,2371.5,2371.3,1.5461]
[1727941961411,6.74687,2371.5,2371.0,1.5288]
[1727941961580,3.37354,2371.4,2371.0,1.5288]
[1727941961927,3.37367,2371.3,2371.0,1.5288]
[1727941962229,3.37382,2371.2,2370.7,4.95249]
[1727941962376,3.37382,2371.2,2370.7,2.41079242]
[1727941962787,3.37382,2371.2,2370.7,5.78525242]
[1727941962987,3.37397,2371.1,2370.7,2.41079242]
[1727941963187,3.37413,2371.0,2370.7,1.578]
[1727941963699,6.74806,2371.1,2370.7,1.578]
[1727941964281,3.37411,2371.0,2370.7,1.578]
[1727941964481,6.74804,2371.1,2370.7,1.578]
[1727941964680,3.37438,2370.8,2370.5,1.51880421]
[1727941964918,3.37467,2370.6,2370.5,1.51880421]
[1727941965084,3.0,2370.7,2370.5,1.51880421]
[1727941965414,3.0,2370.7,2370.5,0.00080421]
[1727941965415,3.37467,2370.6,2370.5,0.00080421]
[1727941965777,3.0,2370.9,2370.5,0.00080421]
[1727941965986,6.37397,2371.1,2370.6,4.90264]
[1727941966182,3.0,2370.9,2370.6,1.528]
[1727941966427,6.37438,2370.9,2370.6,1.528]
[1727941966634,3.0,2370.9,2370.6,1.528]
[1727941966797,6.37425,2370.9,2370.6,1.528]
[1727941967136,3.3745,2370.8,2370.6,1.528]
[1727941967434,3.37439,2370.8,2370.6,1.528]
[1727941968082,3.0,2370.9,2370.6,1.528]
[1727941968287,6.37432,2370.9,2370.6,1.528]
[1727941968934,3.37441,2370.8,2370.6,1.528]
[1727941969435,3.0,2371.2,2370.5,0.00080421]
[1727941969633,3.37467,2370.6,2370.5,0.00080421]
[1727941970742,6.37467,2370.6,2370.5,0.00080421]
[1727941973219,3.0,2370.8,2370.5,1.58760421]
[1727941973545,6.37439,2370.8,2370.5,1.58760421]
[1727941973751,3.0,2370.8,2370.5,1.58760421]
[1727941973909,3.37404,2371.1,2370.6,3.37465]
[1727941974246,3.37404,2371.1,2370.5,4.96233421]
[1727941974247,3.3741,2371.0,2370.5,4.96233421]
[1727941974722,3.37428,2370.9,2370.5,1.58760421]
[1727941975048,3.37453,2370.7,2370.5,1.58760421]
[1727941975208,3.37447,2370.8,2370.5,1.58760421]
[1727941975410,3.37467,2370.6,2370.5,1.58760421]
[1727941975609,3.37467,2370.6,2370.5,0.00080421]
[1727941976046,6.17983473,2370.6,2370.5,0.00080421]
[1727941976252,9.17983473,2370.6,2370.5,0.00080421]
[1727941980154,6.37467,2370.6,2370.5,0.00080421]
[1727941980469,9.17983473,2370.6,2370.5,0.00080421]
[1727941980766,10.70283473,2370.6,2370.5,0.00080421]
[1727941981940,16.77031095,2370.6,2370.5,0.00080421]
[1727941982285,17.21278209,2370.6,2370.5,0.00080421]
[1727941982426,17.21246469,2370.6,2370.5,0.00080421]
[1727941982627,10.70283473,2370.6,2370.5,0.00080421]
[1727941982968,12.42971184,2370.6,2370.5,0.00080421]
[1727941983328,10.70283473,2370.6,2370.5,0.00080421]
[1727941983579,3.37467,2370.6,2370.5,0.00080421]
[1727941983870,6.74864,2370.9,2370.5,1.56670421]
[1727941984038,3.37432,2370.9,2370.5,1.56670421]
[1727941984452,3.37432,2370.9,2370.6,0.49416342]
[1727941984695,3.37409,2371.1,2370.5,4.94147421]
[1727941985256,3.37405,2371.1,2370.5,1.56670421]
[1727941985460,1.5576,2371.3,2370.5,1.56670421]
[1727941985461,3.37439,2370.8,2370.5,1.56670421]
[1727941985643,3.37455,2370.7,2370.5,1.56670421]
[1727941985863,3.37467,2370.6,2370.5,1.56670421]
[1727941986175,3.0,2370.6,2370.5,1.56670421]
[1727941986471,6.37467,2370.6,2370.5,0.00080421]
[1727941986844,10.82353473,2370.6,2370.5,0.00080421]
[1727941987575,11.47347924,2370.6,2370.5,0.00080421]
[1727941988539,15.41273924,2370.6,2370.5,0.00080421]
[1727941989534,13.76903924,2370.6,2369.4,0.119686]
[1727941989736,6.37623,2369.5,2369.4,0.119686]
[1727941990039,8.01523,2369.5,2369.4,0.119686]
[1727941990237,19.70557976,2369.5,2369.4,0.119686]
[1727941990481,19.82557976,2369.5,2369.4,0.119686]
[1727941990645,11.33740924,2369.1,2369.0,1.06138603]
[1727941990848,11.33740924,2369.1,2367.6,1.5413]
[1727941990849,3.37823,2368.1,2367.6,1.5413]
[1727941991039,3.37856,2367.9,2367.6,1.5413]
[1727941991234,3.0,2367.7,2367.1,4.92094]
[1727941991438,3.0,2367.7,2367.2,0.5040626]
[1727941991439,3.37912,2367.5,2367.2,0.5040626]
[1727941991672,6.3788,2367.7,2367.1,1.5413]
[1727941992439,3.0,2367.6,2367.1,1.5413]
[1727941992651,3.37884,2367.7,2367.1,4.9209]
[1727941992984,3.37856,2367.9,2367.1,4.9209]
[1727941992985,3.0,2367.8,2367.1,4.9209]
[1727941993151,3.0,2367.8,2367.2,0.8420246]
[1727941994180,3.37826,2368.1,2367.2,4.2214146]
[1727941994481,3.37774,2368.5,2367.7,3.37867]
[1727941994639,3.37774,2368.5,2367.8,5.01475]
[1727941994865,3.37732,2368.8,2368.1,3.37819]
[1727941995067,3.37748,2368.7,2368.2,0.337819]
[1727941995309,3.37715,2368.9,2368.2,1.6361]
[1727941995476,3.37808,2368.3,2367.9,1.6361]
[1727941995991,3.37772,2368.5,2367.9,1.6361]
[1727941996199,3.45510924,2368.7,2367.6,3.37883]
[1727941996200,3.37836,2368.1,2367.6,1.6175]
[1727941996374,3.37836,2368.1,2367.6,2.117167]
[1727941996580,3.0,2368.0,2367.6,2.117167]
[1727941997401,5.01720924,2368.7,2367.8,3.37865]
[1727941997402,3.0,2368.4,2367.8,3.37865]
[1727941997610,3.37819,2368.2,2367.6,5.496027]
[1727941997772,3.37824,2368.1,2367.6,1.6175]
[1727941998213,6.37802,2368.3,2367.7,3.37878]
[1727941998363,3.0,2368.3,2367.9,1.5934]
[1727941998568,5.51837298,2369.3,2367.9,1.5934]
[1727941998569,1.5766,2369.3,2367.9,1.5934]
[1727941998769,3.37682,2369.1,2368.5,1.5934]
[1727941999015,3.37663,2369.3,2368.5,5.468169]
[1727941999374,3.3767,2369.2,2368.5,5.468169]
[1727941999618,4.95264,2369.7,2367.0,0.119686]
[1727941999619,3.37604,2369.7,2367.0,0.119686]
[1727941999832,3.37826,2368.1,2367.6,1.5318]
[1727941999977,3.45510924,2368.9,2367.6,1.5318]
[1727941999978,4.88201,2368.5,2367.6,1.5318]
[1727942000176,3.37838,2368.0,2367.6,1.5318]
[1727942000418,6.75632,2368.2,2367.6,2.022902]
[1727942000615,3.0,2368.1,2367.6,2.022902]
[1727942001001,6.37823,2368.1,2367.6,2.022902]
[1727942001417,3.0,2368.1,2367.6,1.53042884]
[1727942001590,3.0,2368.2,2367.6,1.53042884]
[1727942001794,3.37875,2367.8,2367.6,1.53042884]
[1727942002130,6.75752,2367.8,2367.6,1.53042884]
[1727942002331,6.37813,2368.2,2367.0,0.119686]
[1727942002332,3.0,2367.5,2367.0,0.119686]
[1727942002543,3.0,2367.8,2367.0,0.119686]
[1727942002708,3.37939,2367.3,2367.0,0.119686]
[1727942002911,6.37966,2367.1,2367.0,0.119686]
[1727942003143,12.501602,2367.1,2367.0,0.119686]
[1727942003325,12.451602,2367.1,2367.0,0.119686]
[1727942003697,16.244535,2367.1,2367.0,0.119686]
[1727942003932,16.85489643,2367.1,2367.0,0.119686]
[1727942004143,6.38137,2365.9,2365.8,0.00080422]
[1727942004302,11.578833,2365.9,2365.8,0.00080422]
[1727942004617,10.108517,2365.9,2365.8,0.00080422]
[1727942004843,10.361952,2365.9,2365.8,0.00080422]
[1727942005139,7.88337,2365.9,2365.8,0.00080422]
[1727942005342,16.0898171,2365.9,2365.8,0.00080422]
[1727942005639,7.88337,2365.9,2365.8,0.00080422]
[1727942006041,6.38137,2365.9,2365.8,0.00080422]
[1727942006228,3.38089,2366.3,2365.8,0.00080422]
[1727942006407,3.0,2366.2,2365.8,0.00080422]
[1727942007400,3.38067,2366.4,2365.8,0.00080422]
[1727942007600,3.38067,2366.4,2365.8,0.49476764]
[1727942007826,3.38099,2366.2,2365.8,0.00080422]
[1727942008104,1.6422,2366.9,2365.8,0.00080422]
[1727942008326,3.38104,2366.2,2365.8,0.00080422]
[1727942008525,3.38134,2366.0,2365.8,0.00080422]
[1727942008698,3.38104,2366.2,2365.8,0.00080422]
[1727942008699,6.3811,2366.1,2365.8,0.00080422]
[1727942009028,4.15539476,2366.9,2365.8,0.00080422]
[1727942009029,3.0,2366.3,2365.8,0.00080422]
[1727942010450,3.0,2366.5,2365.9,3.38135]
[1727942010663,3.0,2366.5,2366.0,0.33821542]
[1727942011274,6.38052,2366.5,2366.0,0.33821542]
[1727942011490,3.0,2366.5,2365.8,3.38230422]
[1727942011996,3.0,2366.7,2366.0,3.38118]
[1727942012150,3.38012,2366.8,2366.1,5.254088]
[1727942012658,3.38,2366.9,2366.2,3.38093]
[1727942012858,3.37986,2367.0,2366.2,3.38093]
[1727942013066,3.38003,2366.9,2366.1,1.873018]
[1727942013278,3.38033,2366.7,2366.1,1.873018]
[1727942013477,3.37997,2366.9,2366.2,0.5254188]
[1727942013693,3.37969,2367.1,2366.3,3.38067]
[1727942013863,3.37983,2367.0,2366.3,3.38067]
[1727942014405,3.0,2366.9,2366.2,7.2872088]
[1727942014575,3.0,2366.9,2366.3,0.91602268]
[1727942014793,3.0,2366.8,2366.3,0.91602268]
[1727942016275,3.0,2366.8,2366.3,4.29680268]
[1727942016886,3.0,2366.8,2366.3,0.91602268]
[1727942016887,6.38021,2366.8,2366.3,0.91602268]
[1727942017071,6.38021,2366.8,2366.1,4.91596]
[1727942017279,6.38021,2366.8,2366.1,1.5349]
[1727942017489,3.38045,2366.6,2366.1,1.5349]
[1727942017702,3.38082,2366.3,2366.1,1.5349]
[1727942017912,3.0,2366.4,2366.1,1.5349]
[1727942018411,6.38071,2366.4,2366.1,1.5349]
[1727942018810,3.38084,2366.3,2366.1,1.5349]
[1727942019127,3.0,2366.4,2365.9,3.38129]
[1727942019269,3.0,2366.6,2366.0,3.86951942]
[1727942019675,3.38059,2366.5,2366.0,0.48828942]
[1727942019920,3.0,2366.5,2366.0,3.86941942]
[1727942020081,3.0,2366.5,2366.1,0.72507094]
[1727942020285,3.0,2366.5,2365.8,0.00080422]
[1727942020286,4.1923,2366.8,2365.8,0.00080422]
[1727942020488,6.38137,2365.9,2365.8,0.00080422]
[1727942022709,3.0,2365.9,2365.8,0.00080422]
[1727942022891,3.38074,2366.4,2365.8,1.54230422]
[1727942023092,3.38046,2366.6,2365.9,3.38128]
[1727942023423,6.76096,2366.6,2366.0,0.49235842]
[1727942023632,3.38046,2366.6,2366.0,0.49235842]
[1727942023938,3.38004,2366.9,2366.1,3.38099]
[1727942024078,3.38033,2366.7,2366.2,1.6249]
[1727942024277,3.38,2366.9,2366.2,5.00584]
[1727942024278,6.76005,2366.9,2366.2,5.00584]
[1727942024519,3.38,2366.9,2366.2,5.00584]
[1727942024730,5.64112732,2369.7,2365.8,3.94568132]
[1727942024731,3.3797,2367.1,2366.3,0.91122958]
[1727942024911,3.3797,2367.1,2365.8,3.94568132]
[1727942024912,3.37963,2367.2,2366.6,3.38036]
[1727942025225,1.5163,2367.7,2366.6,3.38036]
[1727942025226,3.37917,2367.5,2366.7,1.6664]
[1727942025531,3.37917,2367.5,2366.8,6.76005]
[1727942025732,3.37917,2367.5,2366.9,3.37992]
[1727942025892,3.37917,2367.5,2366.7,2.171068]
[1727942026235,3.37917,2367.5,2366.8,3.38006]
[1727942026530,6.75834,2367.5,2366.8,3.38006]
[1727942026736,3.37917,2367.5,2366.9,3.37994]
[1727942026876,3.37917,2367.5,2366.8,3.38]
[1727942027076,6.75833,2367.5,2366.9,0.50464]
[1727942027281,3.37916,2367.5,2366.9,0.50464]
[1727942027481,3.37888,2367.7,2367.0,4.87996]
[1727942027839,3.37869,2367.8,2367.2,3.3795]
[1727942028145,3.37867,2367.8,2367.3,0.33795]
[1727942028294,3.37867,2367.8,2367.2,3.37943]
[1727942028295,3.3786,2367.9,2367.2,6.75886]
[1727942028498,3.37833,2368.1,2367.4,3.37914]
[1727942029033,3.37814,2368.2,2367.6,3.37887]
[1727942029343,3.37795,2368.3,2367.7,3.37877]
[1727942029503,3.37776,2368.5,2367.6,3.877227]
[1727942029504,3.37774,2368.5,2367.9,1.6168]
[1727942029706,3.37774,2368.5,2368.0,3.877915]
[1727942029707,3.3777,2368.5,2368.0,3.877915]
[1727942029888,3.3777,2368.5,2368.0,3.877905]
[1727942030087,2.9752,2368.5,2368.0,3.877905]
[1727942030686,3.37744,2368.7,2368.0,3.877895]
[1727942030882,1.6292,2369.3,2368.2,3.37796]
[1727942030883,3.37719,2368.9,2368.2,3.37796]
[1727942031116,1.6292,2369.3,2368.3,0.488266]
[1727942031299,3.37754,2368.6,2368.1,1.5047]
[1727942031515,3.37754,2368.6,2368.1,4.88292]
[1727942031715,3.37746,2368.7,2368.1,4.88292]
[1727942031919,3.37727,2368.8,2368.2,3.37803]
[1727942032086,6.75406,2369.0,2368.4,1.5195]
[1727942032292,3.3771,2368.9,2368.4,1.5195]
[1727942032491,3.37698,2369.0,2368.5,3.37765]
[1727942032827,3.37675,2369.2,2368.5,3.37765]
[1727942033137,3.37682,2369.1,2368.5,3.37758]
[1727942033292,3.37682,2369.1,2368.6,0.489708]
[1727942033692,6.75353,2369.2,2368.7,1.6121]
[1727942034200,3.0,2369.1,2368.7,1.6121]
[1727942035084,3.37675,2369.2,2368.7,1.6121]
[1727942035491,3.37675,2369.2,2368.7,4.98946]
[1727942035732,6.37644,2369.4,2368.8,0.5479168]
[1727942035733,3.37644,2369.4,2368.8,0.5479168]
[1727942036026,6.75234,2369.6,2368.9,4.95008]
[1727942036237,3.37641,2369.4,2368.9,1.5731]
[1727942036448,3.37641,2369.4,2369.0,0.54981468]
[1727942036601,3.37589,2369.8,2369.1,1.5079]
[1727942036799,3.37611,2369.6,2369.1,1.5079]
[1727942037002,3.37589,2369.8,2369.1,1.5079]
[1727942037323,3.37567,2369.9,2369.3,4.88863]
[1727942037532,3.37567,2369.9,2369.4,0.826521]
[1727942037718,3.37582,2369.8,2369.4,0.826521]
[1727942038403,6.75125,2370.0,2369.4,0.826521]
[1727942038624,3.37568,2369.9,2369.5,0.5715241]
[1727942038945,3.37568,2369.9,2369.6,1.5631]
[1727942040067,3.3756,2370.0,2369.6,1.5631]
[1727942040216,3.37531,2370.2,2369.6,4.93918]
[1727942040552,3.37531,2370.2,2369.7,0.493918]
[1727942040921,3.37531,2370.2,2369.8,1.5692]
[1727942041157,3.37505,2370.4,2369.8,3.37579]
[1727942041324,6.74955,2370.6,2369.9,4.94477]
[1727942041524,3.37487,2370.5,2369.9,4.94477]
[1727942041838,3.37487,2370.5,2370.0,0.832056]
[1727942042026,3.37487,2370.5,2370.1,1.6089]
[1727942042227,3.37498,2370.4,2370.1,1.6089]
[1727942043428,3.37482,2370.5,2370.1,1.6089]
[1727942043641,3.37418,2371.0,2370.1,1.6411]
[1727942043845,3.37432,2370.9,2370.4,5.01605]
[1727942044052,3.37442,2370.8,2370.4,1.6411]
[1727942044252,3.37435,2370.9,2370.4,1.6411]
[1727942044472,3.37404,2371.1,2370.6,3.37462]
[1727942044688,3.37404,2371.1,2370.6,0.501572]
[1727942045071,3.37404,2371.1,2370.6,3.876212]
[1727942045238,3.37404,2371.1,2370.7,1.532]
[1727942045678,3.37367,2371.3,2370.7,1.532]
[1727942045679,6.74747,2371.3,2370.7,1.532]
[1727942045884,3.37346,2371.5,2370.9,3.37423]
[1727942046188,12.75444374,2372.1,2370.9,3.37423]
[1727942046189,3.37319,2371.7,2371.0,1.5285]
[1727942046543,3.37319,2371.7,2371.1,3.37386]
[1727942046744,3.37319,2371.7,2371.3,1.6626]
[1727942047100,3.3729,2371.9,2371.4,3.3735]
[1727942047555,3.3729,2371.9,2371.3,1.6626]
[1727942047556,7.87666374,2372.9,2371.3,1.524]
[1727942047766,3.37244,2372.2,2371.5,1.524]
[1727942048087,3.37259,2372.1,2371.5,4.89727]
[1727942048271,3.37259,2372.1,2371.6,3.37323]
[1727942048581,3.37244,2372.2,2371.6,0.827067]
[1727942048582,3.37268,2372.0,2371.6,0.827067]
[1727942049083,3.37289,2371.9,2371.7,1.515]
[1727942049302,3.37296,2371.8,2371.7,1.515]
[1727942049587,3.37296,2371.8,2371.1,3.37387]
[1727942049588,3.37296,2371.8,2371.4,1.515]
[1727942050475,3.37276,2372.0,2371.4,1.515]
[1727942050695,6.74552,2372.0,2371.4,4.88851]
[1727942050875,3.37284,2371.9,2371.4,4.88851]
[1727942051250,3.37276,2372.0,2371.5,3.37336]
[1727942051477,6.37249,2372.2,2371.5,3.37331]
[1727942051659,3.37249,2372.2,2371.8,1.5015]
[1727942052007,6.74499,2372.2,2371.8,1.5015]
[1727942052148,3.37249,2372.2,2371.8,1.5015]
[1727942052688,3.3722,2372.4,2371.8,1.5015]
[1727942052689,3.37229,2372.3,2371.8,1.5015]
[1727942053448,3.37233,2372.3,2371.8,1.988952]
[1727942053805,3.37191,2372.6,2371.8,1.988952]
[1727942053956,3.37207,2372.5,2371.9,3.37269]
[1727942054161,3.37191,2372.6,2372.1,1.5923]
[1727942054378,3.37191,2372.6,2372.1,4.9648]
[1727942054655,1.5235,2373.0,2372.3,3.37214]
[1727942054656,6.74271,2373.0,2372.3,3.37214]
[1727942054885,3.37148,2372.9,2372.4,1.531]
[1727942055086,3.37142,2372.9,2372.4,1.531]
[1727942056355,3.37135,2373.0,2372.5,1.5477]
[1727942056602,3.3714,2372.9,2372.5,1.5477]
[1727942056810,3.37135,2373.0,2372.5,1.5477]
[1727942057101,3.0,2373.1,2372.5,4.91953]
[1727942057252,3.37127,2373.0,2372.5,5.748698]
[1727942058004,3.37078,2373.4,2372.8,3.3715]
[1727942058186,3.3705,2373.6,2373.0,3.37116]
[1727942058505,4.89444,2374.1,2372.9,1.626]
[1727942058506,1.5247,2374.1,2372.9,1.626]
[1727942058650,3.37123,2373.1,2372.9,1.626]
[1727942059062,6.74183,2373.3,2372.9,1.626]
[1727942059497,1.5247,2374.1,2372.9,1.626]
[1727942059701,3.37063,2373.5,2372.9,4.9973]
[1727942060024,3.37063,2373.5,2373.0,0.49973]
[1727942060367,3.37063,2373.5,2373.0,3.87098]
[1727942061173,3.37063,2373.5,2373.0,0.49973]
[1727942061369,3.3708,2373.4,2373.0,0.49973]
[1727942062003,3.37113,2373.1,2372.9,1.626]
[1727942062361,3.37105,2373.2,2372.9,1.626]
[1727942063059,3.37114,2373.1,2372.9,1.626]
[1727942063258,3.37126,2373.0,2372.9,1.626]
[1727942063498,3.37147,2372.9,2372.6,1.5199]
[1727942063686,3.37147,2372.9,2372.6,1.7548068]
[1727942064104,3.37156,2372.8,2372.6,1.5199]
[1727942064266,3.37147,2372.9,2372.6,1.5199]
[1727942064906,6.74301,2372.9,2372.6,1.5199]
[1727942065104,3.37168,2372.7,2372.6,1.5199]
[1727942066000,3.37168,2372.7,2371.9,3.37273]
[1727942066211,3.37213,2372.4,2372.0,1.956273]
[1727942066426,1.5499,2373.0,2372.0,1.619]
[1727942066427,3.3719,2372.6,2372.0,1.619]
[1727942066801,3.3719,2372.6,2372.0,4.99156]
[1727942067142,6.74386,2372.6,2372.0,4.99156]
[1727942067300,3.37204,2372.5,2372.1,0.499156]
[1727942068297,3.37211,2372.4,2372.1,0.499156]
[1727942068520,3.37233,2372.3,2372.0,1.619]
[1727942068722,3.37211,2372.4,2372.0,1.619]
[1727942068923,6.74435,2372.4,2372.0,1.619]
[1727942069134,3.37228,2372.3,2372.0,1.619]
[1727942069432,3.37211,2372.4,2372.0,1.619]
[1727942069605,3.37211,2372.4,2372.0,2.118186]
[1727942069927,6.74432,2372.4,2372.0,2.118186]
[1727942070135,3.37211,2372.4,2372.0,2.118186]
[1727942070290,6.74431,2372.4,2372.0,2.118186]
[1727942070493,1.6324,2373.4,2372.1,0.2118186]
[1727942070687,3.37176,2372.7,2372.2,1.6427]
[1727942070928,6.74303,2372.9,2372.2,1.6427]
[1727942071143,6.74303,2372.9,2372.3,3.37217]
[1727942071342,3.37158,2372.8,2372.4,0.501487]
[1727942072587,3.37133,2373.0,2372.5,1.5618]
[1727942072833,3.37121,2373.1,2372.6,3.37181]
[1727942073038,6.74189,2373.3,2372.7,3.37166]
[1727942073337,3.37064,2373.5,2372.9,4.9331]
[1727942073517,3.37064,2373.5,2372.9,4.93308]
[1727942073728,3.37043,2373.6,2373.1,3.3711]
[1727942073940,3.37043,2373.6,2373.2,0.33711]
[1727942074249,3.37063,2373.5,2373.2,0.33711]
[1727942074411,3.37062,2373.5,2372.9,4.93308]
[1727942074617,6.74126,2373.5,2372.9,4.93308]
[1727942074919,3.37084,2373.3,2372.9,1.5618]
[1727942075136,3.37119,2373.1,2372.9,1.5618]
[1727942075321,3.37112,2373.1,2372.9,1.5618]
[1727942076260,3.37079,2373.4,2372.9,1.5618]
[1727942076410,3.37047,2373.6,2373.0,3.37123]
[1727942076609,3.37047,2373.6,2373.1,3.864393]
[1727942076828,3.37047,2373.6,2373.2,1.6278]
[1727942077217,3.37014,2373.8,2373.2,1.6278]
[1727942077218,3.37014,2373.8,2373.2,4.99866]
[1727942077413,3.37014,2373.8,2373.3,3.37082]
[1727942077643,3.37014,2373.8,2373.4,0.499862]
[1727942077854,6.74034,2373.8,2373.4,0.499862]
[1727942078717,3.37014,2373.8,2373.4,0.499862]
[1727942079431,3.3703,2373.7,2373.4,0.499862]
[1727942079630,3.3703,2373.7,2373.2,1.6278]
[1727942079849,3.37083,2373.3,2373.2,1.6278]
[1727942080062,3.37126,2373.0,2372.9,1.6432]
[1727942080562,6.74211,2373.2,2372.9,1.6432]
[1727942080712,3.37115,2373.1,2372.9,1.6432]
[1727942080913,3.37126,2373.0,2372.9,1.6432]
[1727942081854,3.37115,2373.1,2372.9,1.6432]
[1727942083366,6.74238,2373.1,2372.9,1.6432]
[1727942083683,3.37115,2373.1,2372.9,1.6432]
[1727942084571,3.37101,2373.2,2372.9,1.6432]
[1727942085854,3.37093,2373.3,2372.9,1.6432]
[1727942086096,3.37112,2373.1,2372.9,2.144687]
[1727942086403,3.37112,2373.1,2372.9,1.6432]
[1727942086607,3.37168,2372.7,2372.4,0.501487]
[1727942086807,3.37211,2372.4,2372.3,1.588]
[1727942087162,1.5633,2372.8,2371.8,1.588]